bitfinex/quotes_BTCUSD_20211001
["timestamp","ask_amount","ask_price","bid_price","bid_amount"]
[1633054835450,0.00128211,43576.0,43575.0,0.00152692]
[1633054835648,0.14195211,43576.0,43575.0,0.00152692]
[1633054835845,0.14195211,43576.0,43575.0,0.02652692]
[1633054835846,0.15187811,43576.0,43575.0,0.02652692]
[1633054836045,0.17015997,43576.0,43575.0,0.02652692]
[1633054836444,0.27015997,43576.0,43575.0,0.02652692]
[1633054837048,0.27015997,43576.0,43575.0,0.00152692]
[1633054837445,0.17015997,43576.0,43575.0,0.00152692]
[1633054837647,0.16887786,43576.0,43575.0,0.00152692]
[1633054837846,0.19487786,43576.0,43575.0,0.02652692]
[1633054838045,0.05420786,43576.0,43575.0,0.02652692]
[1633054839046,0.05420786,43576.0,43575.0,0.00152692]
[1633054839248,0.02820786,43576.0,43575.0,0.00152692]
[1633054840248,0.05020786,43576.0,43575.0,0.03152692]
[1633054841449,0.05020786,43576.0,43575.0,0.00152692]
[1633054841450,0.02820786,43576.0,43575.0,0.00152692]
[1633054841650,0.009926,43576.0,43575.0,0.00821078]
[1633054841853,0.037926,43576.0,43575.0,0.02752692]
[1633054844454,0.028,43576.0,43575.0,0.02752692]
[1633054845252,0.56163863,43577.0,43575.0,0.00152692]
[1633054845451,0.56163863,43577.0,43576.0,0.01369799]
[1633054845853,0.58963863,43577.0,43576.0,0.01369799]
[1633054846453,0.58963863,43577.0,43575.0,0.02752692]
[1633054847317,0.58963863,43577.0,43575.0,0.00152692]
[1633054847318,0.56163863,43577.0,43575.0,0.00152692]
[1633054847858,0.58963863,43577.0,43575.0,0.02752692]
[1633054849057,0.009926,43576.0,43575.0,0.02752692]
[1633054849255,0.009926,43576.0,43575.0,0.00152692]
[1633054849855,0.037926,43576.0,43575.0,0.02752692]
[1633054851256,0.009926,43576.0,43575.0,0.00152692]
[1633054851857,0.037926,43576.0,43575.0,0.02752692]
[1633054853321,0.009926,43576.0,43575.0,0.00152692]
[1633054853862,0.009926,43576.0,43575.0,0.02752692]
[1633054854058,0.037926,43576.0,43575.0,0.02752692]
[1633054855664,0.037926,43576.0,43575.0,0.04081864]
[1633054855861,0.037926,43576.0,43575.0,0.03981864]
[1633054855862,0.038926,43576.0,43575.0,0.03981864]
[1633054856460,0.029,43576.0,43575.0,0.03981864]
[1633054856861,0.029,43576.0,43575.0,0.11205614]
[1633054857060,0.029,43576.0,43575.0,0.03981864]
[1633054857260,0.27164738,43576.0,43575.0,0.03981864]
[1633054857861,0.24264738,43576.0,43575.0,0.00152692]
[1633054858061,0.26464738,43576.0,43575.0,0.03252692]
[1633054858261,0.022,43576.0,43575.0,0.03252692]
[1633054859322,0.17654446,43576.0,43575.0,0.00152692]
[1633054859464,0.23084679,43580.0,43575.0,0.00152692]
[1633054859668,0.344339,43579.0,43576.0,0.01346756]
[1633054859865,0.00129805,43577.0,43576.0,0.01346756]
[1633054860066,0.00129805,43577.0,43575.0,0.03352692]
[1633054860067,0.01122405,43577.0,43575.0,0.03352692]
[1633054860463,0.02032835,43576.0,43575.0,0.03352692]
[1633054860662,0.03025435,43576.0,43575.0,0.03352692]
[1633054861063,0.03025435,43576.0,43575.0,0.02352692]
[1633054861264,0.229599,43575.0,43569.0,0.22964025]
[1633054861464,0.344399,43573.0,43570.0,0.00704483]
[1633054862063,0.372399,43573.0,43570.0,0.03504483]
[1633054862329,0.372399,43573.0,43571.0,0.00736397]
[1633054862463,0.372399,43573.0,43572.0,0.18911264]
[1633054862667,0.372399,43573.0,43572.0,0.19763147]
[1633054863063,0.372399,43573.0,43572.0,0.00851883]
[1633054863264,0.344399,43573.0,43572.0,0.00851883]
[1633054864065,0.372399,43573.0,43572.0,0.03551883]
[1633054864669,0.372399,43573.0,43572.0,0.03647502]
[1633054865345,0.344399,43573.0,43572.0,0.00947502]
[1633054865669,0.59776249,43578.0,43572.0,0.00947502]
[1633054865670,0.06355644,43578.0,43572.0,0.00947502]
[1633054865869,0.06355331,43579.0,43572.0,0.00947502]
[1633054866069,0.028,43573.0,43572.0,0.03647502]
[1633054866269,0.028,43573.0,43572.0,0.26538802]
[1633054866467,0.028,43573.0,43572.0,0.27032101]
[1633054867268,0.2986108,43580.0,43572.0,0.24332101]
[1633054867469,0.23502808,43580.0,43577.0,0.18737283]
[1633054867669,0.23502808,43580.0,43575.0,0.0847405]
[1633054867872,0.344332,43580.0,43577.0,0.01006614]
[1633054868072,0.374332,43580.0,43577.0,0.03706614]
[1633054868337,0.03,43580.0,43579.0,0.9512724]
[1633054868476,0.03,43580.0,43579.0,1.43957191]
[1633054868874,0.03,43580.0,43579.0,1.66481642]
[1633054869075,0.03,43580.0,43579.0,1.16598952]
[1633054869275,0.01657025,43582.0,43579.0,1.16598952]
[1633054869473,0.01657025,43582.0,43580.0,0.91020369]
[1633054869671,0.01657025,43582.0,43581.0,0.89020787]
[1633054869873,0.01657025,43582.0,43581.0,0.46912087]
[1633054872072,0.01657025,43582.0,43581.0,0.50312087]
[1633054873272,0.01657025,43582.0,43581.0,0.46912087]
[1633054874080,0.01657025,43582.0,43581.0,0.06867339]
[1633054874342,0.01657025,43582.0,43581.0,0.034]
[1633054874479,0.02461062,43582.0,43581.0,0.034]
[1633054875274,0.02461062,43582.0,43573.0,0.19092418]
[1633054875275,0.02461062,43582.0,43574.0,0.08806633]
[1633054875475,0.20561236,43580.0,43574.0,0.08806633]
[1633054875874,0.20561236,43580.0,43575.0,0.00670806]
[1633054876076,0.20561236,43580.0,43574.0,0.035]
[1633054877079,0.20561236,43580.0,43574.0,0.11023801]
[1633054877479,0.18061236,43580.0,43576.0,0.0072372]
[1633054878081,0.20061236,43580.0,43576.0,0.0402372]
[1633054878285,0.20061236,43580.0,43577.0,0.00554492]
[1633054878989,0.20061236,43580.0,43576.0,8.212e-05]
[1633054878990,0.55718887,43579.0,43576.0,8.212e-05]
[1633054879196,0.61118189,43577.0,43576.0,8.212e-05]
[1633054879390,0.62269956,43577.0,43569.0,0.22964025]
[1633054879585,0.0012481,43570.0,43569.0,0.22964025]
[1633054879783,0.1663581,43570.0,43569.0,0.22964025]
[1633054879983,0.64340001,43570.0,43569.0,0.25564025]
[1633054880185,1.00048724,43570.0,43569.0,0.25564025]
[1633054880388,1.01041324,43570.0,43569.0,0.25564025]
[1633054881383,1.01041324,43570.0,43569.0,0.22964025]
[1633054881585,1.11041324,43570.0,43569.0,0.22964025]
[1633054881985,1.14041324,43570.0,43569.0,0.25264025]
[1633054883394,1.11041324,43570.0,43569.0,0.22964025]
[1633054883987,1.14041324,43570.0,43569.0,0.25264025]
[1633054884587,1.04041324,43570.0,43569.0,0.25264025]
[1633054884787,0.76745172,43570.0,43569.0,0.25264025]
[1633054885389,0.73745172,43570.0,43569.0,0.22964025]
[1633054885991,1.10165844,43570.0,43569.0,0.24964025]
[1633054887388,1.07165844,43570.0,43569.0,0.22964025]
[1633054887990,1.20165844,43570.0,43569.0,0.24964025]
[1633054888390,1.10165844,43570.0,43569.0,0.24964025]
[1633054888593,1.20165844,43570.0,43569.0,0.24964025]
[1633054888991,1.10310688,43570.0,43569.0,0.24964025]
[1633054889391,1.07310688,43570.0,43569.0,0.22964025]
[1633054889793,0.83745172,43570.0,43569.0,0.22964025]
[1633054889991,0.86745172,43570.0,43569.0,0.24964025]
[1633054890796,0.66337133,43570.0,43569.0,0.47284025]
[1633054890997,0.229629,43574.0,43569.0,0.47284025]
[1633054890999,0.01657025,43582.0,43576.0,0.49234884]
[1633054891210,0.01657025,43582.0,43581.0,0.00126618]
[1633054891398,0.01657025,43582.0,43581.0,0.20797653]
[1633054891599,0.01657025,43582.0,43581.0,0.20387011]
[1633054892000,0.01657025,43582.0,43581.0,1.15371695]
[1633054892001,0.04057025,43582.0,43581.0,1.15371695]
[1633054892194,0.04057025,43582.0,43581.0,1.38269195]
[1633054893059,0.04057025,43582.0,43581.0,1.38216185]
[1633054893455,0.01657025,43582.0,43581.0,1.35616185]
[1633054894053,0.02957025,43582.0,43581.0,1.38516185]
[1633054894654,0.02957025,43582.0,43581.0,1.38569195]
[1633054895254,0.01657025,43582.0,43581.0,1.35616185]
[1633054896056,0.03557025,43582.0,43581.0,1.38716185]
[1633054896855,0.03557025,43582.0,43581.0,1.61036185]
[1633054897856,0.01657025,43582.0,43581.0,0.90558553]
[1633054898058,0.02257025,43582.0,43581.0,0.94011221]
[1633054899061,0.02257025,43582.0,43581.0,1.03585702]
[1633054899458,0.02257025,43582.0,43581.0,0.71113721]
[1633054900060,0.04657025,43582.0,43581.0,0.73913721]
[1633054900259,0.04657025,43582.0,43581.0,0.73966731]
[1633054900460,0.04057025,43582.0,43581.0,0.93564231]
[1633054900660,0.01657025,43582.0,43581.0,0.90764231]
[1633054901262,0.01657025,43582.0,43581.0,0.90711221]
[1633054902063,0.04057025,43582.0,43581.0,0.93511221]
[1633054903263,0.04057025,43582.0,43581.0,0.73232094]
[1633054903463,0.01657025,43582.0,43581.0,0.70432094]
[1633054904065,0.04057025,43582.0,43581.0,0.73332094]
[1633054904272,0.04057025,43582.0,43581.0,0.95652094]
[1633054904668,0.04057025,43582.0,43581.0,0.73332094]
[1633054905267,0.04057025,43582.0,43581.0,0.70432094]
[1633054905466,0.01657025,43582.0,43581.0,0.92752094]
[1633054906168,0.02357025,43582.0,43581.0,0.99589438]
[1633054907368,0.02357025,43582.0,43581.0,0.96389438]
[1633054907567,0.01657025,43582.0,43581.0,0.96389438]
[1633054908169,0.01657025,43582.0,43581.0,0.99789438]
[1633054908170,0.02157025,43582.0,43581.0,0.99789438]
[1633054909374,0.01657025,43582.0,43581.0,0.96389438]
[1633054910171,0.02057025,43582.0,43581.0,0.99889438]
[1633054911372,0.01657025,43582.0,43581.0,0.96389438]
[1633054911772,0.01657025,43582.0,43581.0,0.96281554]
[1633054912171,0.01657025,43582.0,43581.0,0.99781554]
[1633054912172,0.01957025,43582.0,43581.0,0.99781554]
[1633054912976,0.01957025,43582.0,43581.0,0.99656852]
[1633054913376,0.01657025,43582.0,43581.0,0.96156852]
[1633054914176,0.02057025,43582.0,43581.0,0.99656852]
[1633054915379,0.01657025,43582.0,43581.0,0.96283558]
[1633054915782,0.01657025,43582.0,43581.0,1.42176958]
[1633054915984,0.01657025,43582.0,43581.0,1.57229968]
[1633054916181,0.01657025,43582.0,43581.0,1.60729968]
[1633054916377,0.01657025,43582.0,43581.0,1.60859566]
[1633054916577,0.01657025,43582.0,43581.0,2.82159566]
[1633054917181,0.01657025,43582.0,43581.0,2.82106556]
[1633054917378,0.01657025,43582.0,43581.0,2.74969212]
[1633054917977,0.01657025,43582.0,43581.0,1.53669212]
[1633054918180,0.01657025,43582.0,43581.0,1.57569212]
[1633054918382,0.01657025,43582.0,43581.0,1.57622222]
[1633054918780,0.01657025,43582.0,43581.0,2.78922222]
[1633054919183,0.01657025,43582.0,43581.0,2.78869212]
[1633054919385,0.01657025,43582.0,43581.0,2.74969212]
[1633054919581,0.01657025,43582.0,43581.0,2.75022222]
[1633054920182,0.01657025,43582.0,43581.0,2.79022222]
[1633054921382,0.01657025,43582.0,43581.0,2.75022222]
[1633054922183,0.01657025,43582.0,43581.0,2.78922222]
[1633054922785,0.1323489,43590.0,43582.0,1.1]
[1633054922984,0.1323489,43590.0,43589.0,0.09711502]
[1633054923184,0.1323489,43590.0,43589.0,0.32609002]
[1633054923383,0.1323489,43590.0,43589.0,0.35155762]
[1633054923584,0.1323489,43590.0,43589.0,2.88726338]
[1633054924187,0.1443489,43590.0,43589.0,2.92026338]
[1633054924796,0.344139,43604.0,43590.0,0.14934764]
[1633054924994,0.07092458,43603.0,43598.0,0.00120532]
[1633054925195,0.12753381,43606.0,43598.0,0.00120532]
[1633054925393,0.0709547,43605.0,43599.0,0.01533002]
[1633054925594,0.07095543,43604.0,43599.0,0.01533002]
[1633054925790,0.08650431,43605.0,43602.0,0.21044036]
[1633054926091,0.2965958,43604.0,43603.0,0.16221562]
[1633054926296,0.07095695,43604.0,43603.0,0.16221562]
[1633054926491,0.00129812,43607.0,43603.0,0.17787316]
[1633054926890,0.00129812,43607.0,43603.0,0.16221562]
[1633054927691,0.00129812,43607.0,43603.0,0.15721562]
[1633054927692,0.23157479,43605.0,43603.0,0.15721562]
[1633054927891,0.00129812,43607.0,43604.0,0.0077993]
[1633054928355,0.00129812,43607.0,43603.0,0.03395209]
[1633054928695,0.00129812,43607.0,43604.0,0.0079067]
[1633054928899,0.70228039,43614.0,43604.0,0.0079067]
[1633054928900,0.22003279,43609.0,43605.0,0.00126703]
[1633054929096,0.22003279,43609.0,43606.0,0.01547468]
[1633054929695,0.22003279,43609.0,43605.0,0.00126703]
[1633054930095,0.229374,43608.0,43605.0,0.00126703]
[1633054930293,0.229374,43608.0,43605.0,0.03126703]
[1633054930494,0.229374,43608.0,43606.0,0.19384551]
[1633054930696,0.229374,43608.0,43607.0,0.01549831]
[1633054931697,0.229374,43608.0,43607.0,0.22301348]
[1633054932300,0.229374,43608.0,43607.0,0.24801348]
[1633054933299,0.229374,43608.0,43607.0,0.025]
[1633054933500,0.229374,43608.0,43603.0,0.21203662]
[1633054933695,0.229374,43608.0,43604.0,0.01600353]
[1633054933696,0.344111,43607.0,43604.0,0.01600353]
[1633054933896,0.41804119,43607.0,43604.0,0.01600353]
[1633054934300,0.41804119,43607.0,43604.0,0.04300353]
[1633054934698,0.41804119,43607.0,43604.0,0.027]
[1633054935097,0.41804119,43607.0,43605.0,0.01560457]
[1633054935303,0.344111,43607.0,43605.0,0.01560457]
[1633054935900,0.229374,43608.0,43605.0,0.01560457]
[1633054936299,0.229374,43608.0,43605.0,0.03960457]
[1633054936498,0.229374,43608.0,43606.0,0.21640178]
[1633054936701,0.229374,43608.0,43607.0,0.19179456]
[1633054936899,0.229374,43608.0,43607.0,0.20764477]
[1633054937704,0.229374,43608.0,43607.0,0.01585021]
[1633054937910,0.229374,43608.0,43603.0,0.20512294]
[1633054938303,0.229374,43608.0,43607.0,0.016]
[1633054939504,0.229374,43608.0,43603.0,0.20512294]
[1633054939903,0.229374,43608.0,43604.0,0.01560018]
[1633054942302,0.229374,43608.0,43604.0,0.04460018]
[1633054942503,0.229374,43608.0,43605.0,0.01801186]
[1633054944311,0.229374,43608.0,43605.0,0.04401186]
[1633054944508,0.229374,43608.0,43606.0,0.20209858]
[1633054944909,0.229374,43608.0,43607.0,0.01604454]
[1633054945109,0.229374,43608.0,43607.0,0.19863844]
[1633054946374,0.229374,43608.0,43607.0,0.22063844]
[1633054947511,0.229374,43608.0,43607.0,0.01604454]
[1633054947816,0.229374,43608.0,43603.0,0.0964636]
[1633054947817,0.23060567,43608.0,43603.0,0.0015259]
[1633054948014,0.00122377,43604.0,43603.0,0.0015259]
[1633054948212,0.06507412,43604.0,43603.0,0.0015259]
[1633054948416,0.07793037,43604.0,43603.0,0.0015259]
[1633054949215,0.09232372,43604.0,43603.0,0.0015259]
[1633054950221,0.09232372,43604.0,43603.0,0.022]
[1633054950415,0.09439935,43604.0,43603.0,0.022]
[1633054950620,0.09439935,43604.0,43590.0,0.14934764]
[1633054950621,0.4,43603.0,43590.0,0.14934764]
[1633054950815,0.00120389,43592.0,43590.0,0.14934764]
[1633054951021,0.26321657,43591.0,43590.0,0.14934764]
[1633054951216,0.46801465,43591.0,43590.0,0.14934764]
[1633054951415,0.27272411,43591.0,43590.0,0.14934764]
[1633054951618,0.61697111,43591.0,43590.0,0.14934764]
[1633054951816,0.61697111,43591.0,43573.0,0.00125054]
[1633054952018,0.01866881,43587.0,43573.0,0.00125054]
[1633054952219,0.01866881,43587.0,43576.0,0.49234884]
[1633054952416,0.01994857,43587.0,43578.0,0.031]
[1633054952817,0.0012805,43582.0,43579.0,0.20196133]
[1633054953017,0.2308225,43582.0,43579.0,0.20196133]
[1633054953217,0.344312,43581.0,43579.0,0.20196133]
[1633054953418,0.344312,43581.0,43580.0,0.01544666]
[1633054953819,0.344312,43581.0,43579.0,0.20196133]
[1633054954419,0.367312,43581.0,43579.0,0.23296133]
[1633054954619,0.367312,43581.0,43579.0,0.22796133]
[1633054954819,0.023,43581.0,43579.0,0.22796133]
[1633054957522,0.023,43581.0,43580.0,0.228975]
[1633054958122,0.023,43581.0,43579.0,0.22796133]
[1633054958381,0.229542,43582.0,43580.0,0.033]
[1633054958785,0.229542,43582.0,43581.0,0.01547474]
[1633054958786,0.573833,43582.0,43581.0,0.01547474]
[1633054959082,0.573833,43582.0,43580.0,0.033]
[1633054959083,0.7796518,43582.0,43580.0,0.033]
[1633054959280,0.21505579,43581.0,43580.0,0.033]
[1633054959681,0.21505579,43581.0,43576.0,0.49234884]
[1633054959883,0.43429115,43579.0,43576.0,0.49234884]
[1633054960283,0.43429115,43579.0,43576.0,0.51934884]
[1633054961083,0.344349,43579.0,43576.0,0.51934884]
[1633054961287,0.344349,43579.0,43577.0,2.72840401]
[1633054961486,0.229566,43580.0,43577.0,2.72840401]
[1633054961684,0.229566,43580.0,43576.0,0.49234884]
[1633054961685,0.00127102,43578.0,43576.0,0.49234884]
[1633054961888,0.00123968,43577.0,43576.0,0.49234884]
[1633054962287,0.00123968,43577.0,43576.0,0.51734884]
[1633054962684,0.02034408,43577.0,43576.0,0.51734884]
[1633054963686,0.14656408,43577.0,43576.0,0.49234884]
[1633054964291,0.17556408,43577.0,43576.0,0.51734884]
[1633054966287,0.04934408,43577.0,43576.0,0.51734884]
[1633054967689,0.04934408,43577.0,43576.0,0.49234884]
[1633054967690,0.02034408,43577.0,43576.0,0.49234884]
[1633054968089,0.0191044,43577.0,43576.0,0.49234884]
[1633054968292,0.0471044,43577.0,43576.0,0.51734884]
[1633054968888,0.028,43577.0,43576.0,0.53301855]
[1633054969091,0.028,43577.0,43576.0,0.51734884]
[1633054969690,0.229566,43580.0,43576.0,0.49234884]
[1633054970290,0.259566,43580.0,43576.0,0.51834884]
[1633054970691,0.259566,43580.0,43576.0,0.51334884]
[1633054971092,0.259566,43580.0,43577.0,0.01547477]
[1633054971493,0.259566,43580.0,43576.0,0.51334884]
[1633054971696,0.229566,43580.0,43576.0,0.48734884]
[1633054972293,0.255566,43580.0,43576.0,0.51334884]
[1633054973696,0.229566,43580.0,43576.0,0.48734884]
[1633054974304,0.259566,43580.0,43576.0,0.51334884]
[1633054975700,0.229566,43580.0,43576.0,0.48734884]
[1633054976101,0.344317,43579.0,43576.0,0.48734884]
[1633054976502,0.344317,43579.0,43576.0,0.51334884]
[1633054976702,0.02547317,43578.0,43576.0,0.05415084]
[1633054977101,0.02338506,43577.0,43576.0,0.05415084]
[1633054977303,0.36777606,43577.0,43576.0,0.05415084]
[1633054977702,0.36777606,43577.0,43576.0,0.02815084]
[1633054978302,0.36777606,43577.0,43576.0,0.05315084]
[1633054978503,0.39477606,43577.0,43576.0,0.05315084]
[1633054979514,0.05038506,43577.0,43576.0,0.05441612]
[1633054979709,0.229566,43580.0,43576.0,0.04560197]
[1633054980205,0.229566,43580.0,43579.0,0.00127403]
[1633054980408,0.240566,43580.0,43579.0,0.23724594]
[1633054980712,0.91819509,43593.0,43579.0,0.23724594]
[1633054980713,0.229504,43590.0,43588.0,0.00129042]
[1633054980909,0.229467,43598.0,43593.0,0.00122513]
[1633054981110,0.229467,43598.0,43597.0,0.00121136]
[1633054981310,0.229467,43598.0,43597.0,0.01754367]
[1633054981514,0.558749,43606.0,43600.0,0.2947932]
[1633054981515,0.19046043,43601.0,43600.0,0.2947932]
[1633054981709,0.19046043,43601.0,43600.0,0.52033096]
[1633054982110,0.19046043,43601.0,43600.0,0.42418687]
[1633054982310,0.19046043,43601.0,43600.0,0.42365677]
[1633054982509,0.19046043,43601.0,43600.0,0.43865677]
[1633054982908,0.19046043,43601.0,43600.0,0.24000766]
[1633054983711,0.229398,43603.0,43600.0,0.24000766]
[1633054983916,0.229398,43603.0,43601.0,0.01727406]
[1633054984717,0.41065061,43603.0,43601.0,0.01727406]
[1633054986113,0.41065061,43603.0,43600.0,0.2087728]
[1633054986315,0.41065061,43603.0,43597.0,0.20486484]
[1633054986514,0.41065061,43603.0,43601.0,0.022]
[1633054986913,0.41065061,43603.0,43602.0,0.18388383]
[1633054987114,0.41065061,43603.0,43602.0,0.18513831]
[1633054987715,0.41065061,43603.0,43602.0,0.20064714]
[1633054987914,0.41065061,43603.0,43602.0,0.01676331]
[1633054988516,0.41065061,43603.0,43602.0,0.03776331]
[1633054988719,0.41065061,43603.0,43602.0,0.22528987]
[1633054988917,0.41065061,43603.0,43602.0,0.20978104]
[1633054989720,0.41065061,43603.0,43602.0,0.18878104]
[1633054989921,0.41065061,43603.0,43602.0,0.00125448]
[1633054990518,0.41065061,43603.0,43602.0,0.02225448]
[1633054990722,0.41065061,43603.0,43602.0,0.21075453]
[1633054991120,0.41065061,43603.0,43602.0,0.20625715]
[1633054991522,0.41065061,43603.0,43602.0,0.021]
[1633054991723,0.41065061,43603.0,43597.0,0.20959328]
[1633054991922,0.344148,43600.0,43598.0,0.01543634]
[1633054992525,0.344148,43600.0,43598.0,0.026]
[1633054992721,0.344148,43600.0,43599.0,0.19483421]
[1633054993124,0.344148,43600.0,43599.0,0.01557244]
[1633054993326,0.34542398,43600.0,43598.0,0.026]
[1633054993524,0.67091515,43599.0,43598.0,0.026]
[1633054993726,0.12091515,43599.0,43596.0,1.88794568]
[1633054993926,0.24879126,43598.0,43596.0,1.88794568]
[1633054994127,1.21658402,43597.0,43596.0,1.88794568]
[1633054994392,1.21658402,43597.0,43596.0,1.4791941]
[1633054994393,1.26658402,43597.0,43596.0,1.4791941]
[1633054994528,2.14158845,43596.0,43581.0,0.13905256]
[1633054994728,2.14158845,43596.0,43587.0,0.01175836]
[1633054994729,1.14047023,43590.0,43587.0,0.01175836]
[1633054994929,0.77029923,43588.0,43587.0,0.01175836]
[1633054995129,1.0480067,43588.0,43587.0,0.01175836]
[1633054995326,1.0480067,43588.0,43581.0,0.13905256]
[1633054995327,0.344389,43584.0,43581.0,0.13905256]
[1633054995528,0.21921511,43581.0,43580.0,0.01384839]
[1633054995727,0.40047079,43581.0,43580.0,0.01384839]
[1633054995928,0.50047079,43581.0,43580.0,0.01384839]
[1633054996129,0.70347904,43581.0,43580.0,0.01384839]
[1633054996327,0.97810615,43581.0,43580.0,0.01384839]
[1633054996528,0.90386951,43581.0,43580.0,0.03284839]
[1633054996728,1.24826151,43581.0,43580.0,0.03284839]
[1633054997930,1.16618151,43581.0,43580.0,0.01384839]
[1633054998536,1.20418151,43581.0,43580.0,0.01384839]
[1633054999736,1.16618151,43581.0,43580.0,0.01384839]
[1633055000538,1.20418151,43581.0,43580.0,0.01384839]
[1633055000942,1.20418151,43581.0,43580.0,0.01087032]
[1633055001739,1.16618151,43581.0,43580.0,0.01087032]
[1633055002537,1.20418151,43581.0,43580.0,0.01087032]
[1633055002943,0.9849664,43581.0,43580.0,0.01087032]
[1633055003743,0.9469664,43581.0,43580.0,0.01087032]
[1633055004141,1.17656821,43581.0,43580.0,0.01087032]
[1633055004543,1.21356821,43581.0,43580.0,0.01087032]
[1633055005344,1.26356821,43581.0,43580.0,0.01087032]
[1633055005744,1.22656821,43581.0,43580.0,0.01087032]
[1633055006545,1.26456821,43581.0,43580.0,0.01087032]
[1633055006746,1.21456821,43581.0,43580.0,0.01087032]
[1633055007744,1.17656821,43581.0,43580.0,0.01087032]
[1633055008545,1.21556821,43581.0,43580.0,0.01087032]
[1633055008945,0.00309482,43580.0,43566.0,0.21451448]
[1633055009146,0.00309482,43580.0,43563.0,0.0004]
[1633055009147,0.00121377,43567.0,43563.0,0.0004]
[1633055009417,0.34800511,43567.0,43563.0,0.0004]
[1633055009550,0.00633835,43564.0,43563.0,0.0004]
[1633055010546,0.03533835,43564.0,43563.0,0.0254]
[1633055011344,0.03661037,43564.0,43563.0,0.0254]
[1633055011945,0.00761037,43564.0,43563.0,0.0004]
[1633055012148,0.21044244,43564.0,43563.0,0.0004]
[1633055012451,0.844565,43563.0,43561.0,0.0004]
[1633055012649,0.01073983,43562.0,43561.0,0.0004]
[1633055014448,0.04073983,43562.0,43561.0,0.0214]
[1633055016252,0.01073983,43562.0,43561.0,0.0004]
[1633055016449,0.11073983,43562.0,43561.0,0.0204]
[1633055016647,0.14173983,43562.0,43561.0,0.0204]
[1633055017847,0.11073983,43562.0,43561.0,0.0004]
[1633055018650,0.14273983,43562.0,43561.0,0.0174]
[1633055019849,0.11073983,43562.0,43561.0,0.0004]
[1633055020652,0.14273983,43562.0,43561.0,0.01846079]
[1633055021252,0.344565,43563.0,43562.0,1.1]
[1633055021253,0.0818296,43563.0,43562.0,1.1]
[1633055021525,0.23096291,43568.0,43562.0,1.1]
[1633055021526,0.229609,43577.0,43572.0,0.00126853]
[1633055021724,0.23269503,43580.0,43576.0,0.00122232]
[1633055021725,0.00309482,43580.0,43576.0,0.00122232]
[1633055021922,0.00309482,43580.0,43579.0,0.00127716]
[1633055022119,0.00309482,43580.0,43579.0,0.01323535]
[1633055022315,0.00309482,43580.0,43579.0,0.09455283]
[1633055022316,0.23465107,43580.0,43579.0,0.09455283]
[1633055022515,0.26965107,43580.0,43579.0,0.09455283]
[1633055022714,0.26965107,43580.0,43579.0,0.08259464]
[1633055022912,0.26965107,43580.0,43579.0,0.00127716]
[1633055023913,0.23465107,43580.0,43579.0,0.00127716]
[1633055024525,0.23465107,43580.0,43579.0,0.022]
[1633055024526,0.26165107,43580.0,43579.0,0.022]
[1633055024723,0.2823776,43580.0,43579.0,0.022]
[1633055025323,0.36275345,43580.0,43579.0,0.022]
[1633055025722,0.70707545,43580.0,43579.0,0.022]
[1633055025925,0.68014293,43580.0,43576.0,0.0012784]
[1633055026525,0.71114293,43580.0,43576.0,0.0212784]
[1633055027727,0.229577,43577.0,43576.0,0.0212784]
[1633055027924,0.229577,43577.0,43576.0,0.0255959]
[1633055028124,0.229577,43577.0,43576.0,0.0012784]
[1633055028528,0.256577,43577.0,43576.0,0.0092784]
[1633055029327,0.600931,43577.0,43576.0,0.0092784]
[1633055029926,0.573931,43577.0,43576.0,0.0012784]
[1633055030128,0.573931,43577.0,43576.0,0.2244784]
[1633055030334,0.33582093,43580.0,43576.0,0.19450031]
[1633055030335,0.02388883,43580.0,43576.0,0.19450031]
[1633055030529,0.02388883,43580.0,43579.0,0.5012849]
[1633055030530,0.0031623,43580.0,43579.0,0.5012849]
[1633055030733,0.0031623,43580.0,43579.0,0.18725766]
[1633055030930,0.0031623,43580.0,43579.0,0.0012849]
[1633055031331,0.21085442,43580.0,43579.0,0.09076958]
[1633055032130,0.21085442,43580.0,43579.0,0.01395506]
[1633055032528,0.24285442,43580.0,43579.0,0.03795506]
[1633055032728,0.24285442,43580.0,43579.0,0.22746784]
[1633055033731,0.24285442,43580.0,43579.0,0.20346784]
[1633055033929,0.21085442,43580.0,43579.0,0.19079768]
[1633055034134,0.21085442,43580.0,43579.0,0.0012849]
[1633055034530,0.21085442,43580.0,43579.0,0.0242849]
[1633055034731,0.23885442,43580.0,43579.0,0.0242849]
[1633055035930,0.21085442,43580.0,43579.0,0.0012849]
[1633055036530,0.24185442,43580.0,43579.0,0.0252849]
[1633055038034,0.21085442,43580.0,43579.0,0.0012849]
[1633055038631,0.24285442,43580.0,43579.0,0.0262849]
[1633055038837,0.0351623,43580.0,43579.0,0.22089048]
[1633055039034,0.0351623,43580.0,43579.0,0.0262849]
[1633055039835,0.20731615,43580.0,43579.0,0.0012849]
[1633055040637,0.0351623,43580.0,43579.0,0.2494849]
[1633055040837,0.0351623,43580.0,43579.0,0.89113314]
[1633055041036,0.0351623,43580.0,43579.0,1.29030814]
[1633055041235,0.0351623,43580.0,43579.0,2.56174824]
[1633055041436,0.07257284,43593.0,43580.0,1.17032459]
[1633055041636,0.2073886,43595.0,43592.0,0.00127844]
[1633055041839,0.2073886,43595.0,43593.0,0.02611954]
[1633055042435,0.2073886,43595.0,43592.0,0.00127844]
[1633055042636,0.09602909,43594.0,43593.0,0.024]
[1633055043639,0.2283886,43595.0,43593.0,0.024]
[1633055043836,0.2073886,43595.0,43594.0,0.02436393]
[1633055044038,0.2073886,43595.0,43592.0,0.00127844]
[1633055044639,0.2273886,43595.0,43592.0,0.02727844]
[1633055045037,0.2273886,43595.0,43593.0,0.02449898]
[1633055046241,0.2273886,43595.0,43592.0,0.02727844]
[1633055046642,0.2363886,43595.0,43593.0,0.024]
[1633055047044,0.2363886,43595.0,43594.0,0.02612752]
[1633055047440,0.2363886,43595.0,43593.0,0.024]
[1633055047839,0.2363886,43595.0,43592.0,0.00127844]
[1633055048041,0.2073886,43595.0,43593.0,0.02473035]
[1633055048439,0.2073886,43595.0,43594.0,0.02567696]
[1633055048643,0.2363886,43595.0,43594.0,0.02567696]
[1633055049647,0.2363886,43595.0,43593.0,0.023]
[1633055049848,0.61980074,43594.0,43580.0,0.07161679]
[1633055050045,0.22542983,43593.0,43580.0,0.07161679]
[1633055050248,0.01779816,43589.0,43580.0,0.07161679]
[1633055050446,0.18537411,43587.0,43580.0,0.07032459]
[1633055050647,0.0982208,43583.0,43580.0,0.10132459]
[1633055050846,0.02132448,43582.0,43580.0,0.10132459]
[1633055051846,0.36563248,43582.0,43580.0,0.10132459]
[1633055052049,0.36563248,43582.0,43580.0,0.07032459]
[1633055052647,0.38963248,43582.0,43580.0,0.10132459]
[1633055054049,0.36563248,43582.0,43580.0,0.07032459]
[1633055054647,0.38963248,43582.0,43580.0,0.10132459]